[Event "2nd European Youth GP 2017"]
[Site "Jermuk"]
[Date "2017.10.13"]
[Round "9"]
[White "Kaasen, Tor Fredrik"]
[Black "Pultinevicius, Paulius"]
[Result "1/2-1/2"]
[ECO "A34"]
[WhiteElo "2371"]
[BlackElo "2387"]
[Annotator "NA"]
[PlyCount "110"]
[EventDate "2017.??.??"]
[EventType "tourn"]
[EventCountry "ARM"]
[SourceTitle "playchess.com"]
[Source "ChessBase"]
[SourceQuality "1"]
[TimeControl "5400+30"]

1. c4 {[%emt 0:00:00]} Nf6 {[%emt 0:01:01]} 2. Nf3 {[%emt 0:00:38]} c5 {[%emt 0:02:52]} 3. Nc3 {[%emt 0:04:00]} d5 {[%emt 0:00:17]} 4. cxd5 {[%emt 0:00:29]} Nxd5 {[%emt 0:00:01]} 5. g3 {[%emt 0:01:15]} Nc6 {[%emt 0:02:28]} 6. Bg2 {[%emt 0:00:10]} Nc7 {[%emt 0:00:06]} 7. O-O {[%emt 0:00:32]} e5 {[%emt 0:00:03]} 8. d3 {[%emt 0:00:47]} Be7 {[%emt 0:00:06]} 9. Bd2 {[%emt 0:00:57]} (9. Nd2 $14) 9... O-O {[%emt 0:00:43]} 10. Rc1 {[%emt 0:00:24] LiveBook: 14 Games} Rb8 {[%emt 0:10:04] A34: Symmetrical English: 2 Nc3, lines with ...d5} 11. a3 {[%emt 0:02:35]} Ne6 {[%emt 0:08:15]} (11... b6 12. b4 cxb4 13. axb4 Bb7 14. Qa4 a6 15. b5 axb5 16. Nxb5 {½-½ (52) Bu,X (2710)-Zhou,J (2597) Huocheng County 2017}) 12. Ne1 {[%emt 0:06:09]} Re8 $146 {[%emt 0:10:49]} ({Predecessor:} 12... Bd7 13. Nd5 Bd6 14. b4 cxb4 15. axb4 Ncd4 16. e3 Nf5 17. Bc3 Ne7 18. d4 Nxd5 19. Bxd5 exd4 20. exd4 {0-1 (36) Pascual Perdiguero,J-Blanco Sanjuan,J (2165) Madrid 1998}) 13. Nc2 {[%emt 0:03:34]} Ned4 {[%emt 0:03:36]} 14. Ne3 {[%emt 0:05:48]} Bf8 {[%emt 0:03:57]} 15. Ned5 {[%emt 0:06:41]} Bg4 {[%emt 0:03:01]} 16. h3 {[%emt 0:12:26]} Be6 {[%emt 0:01:48]} 17. Rb1 {[%emt 0:09:05]} Qd7 {[%emt 0:09:27]} 18. Kh2 {[%emt 0:00:29]} b5 {[%emt 0:00:52]} 19. e3 {[%emt 0:15:12]} ({Better is} 19. b4 $1 $15) 19... b4 {[%emt 0:11:55]} 20. exd4 {[%emt 0:01:15]} bxc3 {[%emt 0:00:08]} 21. Nxc3 {[%emt 0:00:06]} Bb3 $17 {[%emt 0:06:46]} 22. Qh5 {[%emt 0:02:43]} Nxd4 {[%emt 0:03:05]} 23. Rbe1 {[%emt 0:01:42]} f6 {[%emt 0:03:14]} 24. f4 {[%emt 0:03:27]} Bf7 {[%emt 0:00:24]} 25. Qh4 {[%emt 0:02:25]} Rxb2 {[%emt 0:00:26]} 26. Ne4 {[%emt 0:01:20]} f5 {[%emt 0:06:44]} 27. Bc3 {[%emt 0:08:58]} Rc2 {[%emt 0:03:33]} 28. Bxd4 {[%emt 0:01:27]} exd4 {[%emt 0:02:00]} 29. Ng5 {[%emt 0:01:53]} Bg6 {[%emt 0:00:43]} 30. Kg1 {[%emt 0:02:14]} h6 {[%emt 0:00:46]} 31. Nf3 {[%emt 0:01:13]} Be7 {[%emt 0:01:03]} 32. Rxe7 {[%emt 0:00:43]} Qxe7 {[%emt 0:00:16]} 33. Qxe7 {[%emt 0:00:28]} Rxe7 {[%emt 0:00:00]} 34. Ne5 {[%emt 0:00:01]} Kh7 {[%emt 0:02:08]} 35. Rb1 {[%emt 0:00:20]} Ra2 {[%emt 0:01:14]} 36. Rb5 {[%emt 0:01:50]} Rxa3 {[%emt 0:00:59]} 37. Rxc5 {[%emt 0:00:01]} Ra1+ {[%emt 0:00:34]} 38. Kh2 {[%emt 0:00:15]} a5 {[%emt 0:00:41]} 39. Bd5 {[%emt 0:01:30]} a4 {[%emt 0:00:41]} 40. Rc8 {[%emt 0:00:13]} Be8 {[%emt 0:00:27]} 41. g4 {[%emt 0:00:10]} fxg4 {[%emt 0:00:58]} 42. hxg4 {[%emt 0:02:08]} g5 {[%emt 0:00:33]} 43. Be4+ {[%emt 0:01:26]} Kg7 {[%emt 0:00:03]} 44. Nf3 {[%emt 0:00:03]} gxf4 {[%emt 0:00:40]} 45. Nxd4 {[%emt 0:00:04]} Bd7 {[%emt 0:00:57]} 46. Rc7 {[%emt 0:00:02]} Kf6 {[%emt 0:00:10]} 47. Ra7 {[%emt 0:01:05]} a3 {[%emt 0:01:49]} 48. Ra6+ {[%emt 0:00:12]} Kg7 {[%emt 0:00:27]} 49. Rg6+ {[%emt 0:00:56]} Kf8 {[%emt 0:01:04]} 50. Rxh6 {[%emt 0:00:53]} a2 {[%emt 0:00:23]} 51. Rh8+ {[%emt 0:00:19]} Kg7 {[%emt 0:00:30]} 52. Rh7+ {[%emt 0:00:04]} Kf8 {[%emt 0:00:33]} 53. Rh8+ {[%emt 0:00:05]} Kg7 {[%emt 0:00:12]} 54. Rh7+ {[%emt 0:00:04]} Kf6 {[%emt 0:00:32]} 55. Rh6+ {[%emt 0:00:25]} Kg7 {[%emt 0:00:31]} 1/2-1/2

[Event "2nd European Youth GP 2017"]
[Site "Jermuk"]
[Date "2017.10.13"]
[Round "9"]
[White "Zarubitski, Viachaslau"]
[Black "Gharibyan, Mamikon"]
[Result "1-0"]
[ECO "C15"]
[WhiteElo "2311"]
[BlackElo "2346"]
[Annotator "NA"]
[PlyCount "191"]
[EventDate "2017.??.??"]
[EventType "tourn"]
[EventCountry "ARM"]
[SourceTitle "playchess.com"]
[Source "ChessBase"]
[SourceQuality "1"]
[TimeControl "5400+30"]

1. e4 {[%emt 0:00:00]} e6 {[%emt 0:00:21]} 2. d4 {[%emt 0:00:00]} d5 {[%emt 0:00:08]} 3. Nc3 {[%emt 0:00:00]} Bb4 {[%emt 0:00:13]} 4. exd5 {[%emt 0:00:00]} exd5 {[%emt 0:00:11]} 5. Bd3 {[%emt 0:00:00]} Nc6 {[%emt 0:08:01]} 6. a3 {[%emt 0:00:00]} Bxc3+ {[%emt 0:00:15]} 7. bxc3 {[%emt 0:00:00]} Nge7 {[%emt 0:02:27]} 8. Qf3 {[%emt 0:00:30]} Be6 {[%emt 0:06:16]} 9. Ne2 {[%emt 0:01:10]} Qd7 {[%emt 0:03:29]} 10. O-O {[%emt 0:00:41]} O-O $1 {[%emt 0:06:31]} 11. Ng3 {[%emt 0:06:18] LiveBook: 5 Games C01: French: Exchange Variation} Ng6 {[%emt 0:10:44]} (11... Bg4 12. Qf4 Ng6 13. Qd2 Nge7 14. h3 Be6 15. Qg5 f6 16. Qh5 g6 17. Qf3 Kg7 18. Re1 Rfe8 {1-0 (51) Vedder,H (2365)-Carstensen,J (2352) Skopje 2015}) 12. h3 {[%emt 0:02:44]} Rfe8 {[%emt 0:04:38]} 13. Qh5 $146 {[%emt 0:02:33]} ({Predecessor:} 13. Nh5 Qd6 14. Bg5 Qf8 {1-0 (26) Whatley,S (2127)-Broekman,W (1997) Caleta 2017}) 13... Nf8 {[%emt 0:18:12]} 14. a4 {[%emt 0:08:06]} f6 {[%emt 0:07:37]} 15. Qf3 {[%emt 0:05:17]} Qf7 {[%emt 0:02:09]} 16. Ne2 {[%emt 0:06:42]} Ng6 {[%emt 0:03:18]} 17. Qg3 {[%emt 0:00:14]} Qd7 {[%emt 0:06:03]} 18. Nf4 {[%emt 0:03:04]} Nxf4 {[%emt 0:01:05]} 19. Bxf4 {[%emt 0:00:11]} Rac8 {[%emt 0:07:43]} 20. Rfe1 {[%emt 0:08:14]} Na5 {[%emt 0:02:33]} 21. Re2 {[%emt 0:01:17]} Bf5 {[%emt 0:07:35]} 22. Rxe8+ {[%emt 0:01:30]} Rxe8 {[%emt 0:00:01]} 23. Bxc7 {[%emt 0:00:09]} Nc4 {[%emt 0:01:19]} 24. Bf4 {[%emt 0:00:37]} b6 {[%emt 0:00:35]} 25. Qf3 {[%emt 0:08:07]} Be4 {[%emt 0:00:39]} 26. Qh5 {[%emt 0:00:18]} Qf7 {[%emt 0:00:31]} 27. Qxf7+ {[%emt 0:01:45]} Kxf7 {[%emt 0:00:01]} 28. Kf1 {[%emt 0:03:36]} g5 {[%emt 0:00:54]} 29. Bc1 {[%emt 0:00:13]} Ke6 {[%emt 0:00:30]} 30. f3 {[%emt 0:00:35]} Bg6 {[%emt 0:00:14]} 31. Kf2 {[%emt 0:01:52]} Kd7 $14 {[%emt 0:00:31]} 32. Rb1 {[%emt 0:03:07]} Rc8 {[%emt 0:00:48]} 33. Rb5 {[%emt 0:02:09]} Nd6 {[%emt 0:00:42]} 34. Rb3 {[%emt 0:04:04]} Nc4 {[%emt 0:00:11]} 35. g3 {[%emt 0:02:31]} Na5 {[%emt 0:00:50]} 36. Ra3 {[%emt 0:00:08]} Nc4 {[%emt 0:00:22]} 37. Ra2 {[%emt 0:00:07]} Na5 {[%emt 0:00:31]} 38. Bd2 {[%emt 0:01:22]} Nc4 {[%emt 0:00:26]} 39. Be1 {[%emt 0:01:30]} Kc6 {[%emt 0:00:27]} 40. h4 {[%emt 0:01:00]} gxh4 {[%emt 0:00:45]} 41. gxh4 {[%emt 0:00:09]} Re8 {[%emt 0:00:16]} 42. Bxc4 {[%emt 0:02:32]} dxc4 {[%emt 0:00:04]} 43. Bd2 {[%emt 0:00:01]} Rd8 {[%emt 0:00:57]} 44. Rb2 {[%emt 0:00:22]} a5 {[%emt 0:00:43]} 45. Be3 {[%emt 0:01:26]} Rd5 {[%emt 0:00:08]} 46. Ke2 {[%emt 0:00:05]} Bh5 {[%emt 0:00:55]} 47. Kf2 {[%emt 0:02:03]} Bg6 {[%emt 0:00:19]} 48. Ke1 {[%emt 0:00:42]} Bh5 {[%emt 0:00:27]} 49. f4 {[%emt 0:00:05]} Be8 {[%emt 0:00:33]} 50. Kd2 {[%emt 0:00:08]} Kc7 {[%emt 0:00:12]} 51. Ra2 {[%emt 0:00:04]} Bc6 {[%emt 0:00:15]} 52. Ra1 {[%emt 0:00:22]} Rd7 {[%emt 0:00:21]} 53. Kc1 {[%emt 0:01:27]} Re7 {[%emt 0:00:15]} 54. Kd2 {[%emt 0:00:10]} f5 {[%emt 0:00:14]} 55. Bf2 {[%emt 0:02:04]} Rg7 {[%emt 0:00:39]} 56. Ra2 {[%emt 0:02:56]} Rg2 {[%emt 0:00:20]} 57. Ke1 {[%emt 0:00:59]} Rh2 {[%emt 0:00:33]} 58. Ke2 {[%emt 0:02:06]} Rg2 {[%emt 0:00:49]} 59. Ra1 {[%emt 0:00:50]} Be4 {[%emt 0:00:47]} 60. Ra2 {[%emt 0:00:19]} Rh2 {[%emt 0:00:29]} 61. Rb2 {[%emt 0:00:34]} Bc6 {[%emt 0:00:31]} 62. Ra2 {[%emt 0:00:12]} Rh3 {[%emt 0:01:16]} 63. Kd2 {[%emt 0:00:43]} Rf3 {[%emt 0:00:12]} 64. Be3 {[%emt 0:00:13]} Rg3 {[%emt 0:00:43]} 65. Bf2 {[%emt 0:01:51]} Rh3 {[%emt 0:00:33]} 66. Ra1 {[%emt 0:01:09]} Rh2 {[%emt 0:00:12]} 67. Ke2 {[%emt 0:00:58]} Be4 {[%emt 0:00:44]} 68. Ra2 {[%emt 0:00:44]} Rh1 {[%emt 0:00:11]} 69. Rb2 {[%emt 0:00:57]} Bd5 {[%emt 0:00:11]} 70. Be1 {[%emt 0:01:03]} Kc6 {[%emt 0:00:11]} 71. Rb1 {[%emt 0:00:31]} h5 {[%emt 0:00:40]} 72. Rb5 {[%emt 0:00:35]} Rg1 {[%emt 0:00:15]} 73. Rb2 {[%emt 0:00:32]} Rh1 {[%emt 0:01:10]} 74. Rb5 {[%emt 0:00:12]} Be4 {[%emt 0:00:26]} 75. d5+ {[%emt 0:02:04]} Bxd5 {[%emt 0:00:09]} 76. Bf2 {[%emt 0:00:02]} Rh2 {[%emt 0:00:37]} 77. Rxb6+ {[%emt 0:00:04]} Kc7 {[%emt 0:00:08]} 78. Rb5 {[%emt 0:00:20]} Be4 {[%emt 0:00:53]} 79. Rxa5 {[%emt 0:00:11]} Bxc2 {[%emt 0:00:50]} 80. Rc5+ {[%emt 0:00:01]} Kd6 {[%emt 0:00:17]} 81. Rxc4 {[%emt 0:00:11]} Rh1 {[%emt 0:00:21]} 82. a5 {[%emt 0:01:46]} Ra1 {[%emt 0:00:10]} 83. Bb6 {[%emt 0:00:56]} Ra2 {[%emt 0:00:51]} 84. Rc8 {[%emt 0:00:26]} Kd7 {[%emt 0:00:58]} 85. Rh8 {[%emt 0:00:49]} Kc6 {[%emt 0:00:42]} 86. Rxh5 {[%emt 0:00:33]} Kd5 {[%emt 0:00:27]} 87. Ke3 {[%emt 0:00:51]} Be4 {[%emt 0:00:17]} 88. Rh8 {[%emt 0:00:15]} Rh2 {[%emt 0:00:36]} 89. a6 {[%emt 0:04:22]} Rh3+ {[%emt 0:00:33]} 90. Kf2 {[%emt 0:00:36]} Rh2+ {[%emt 0:00:31]} 91. Kg3 {[%emt 0:00:15]} Rg2+ {[%emt 0:00:18]} 92. Kh3 {[%emt 0:00:01]} Ra2 {[%emt 0:00:49]} 93. a7 {[%emt 0:00:04]} Kc4 {[%emt 0:00:03]} 94. h5 {[%emt 0:01:18]} Ra6 {[%emt 0:00:25]} 95. Bd4 {[%emt 0:00:26]} Kd3 {[%emt 0:00:10]} 96. Kh4 {[%emt 0:00:15]} 1-0

[Event "2nd European Youth GP 2017"]
[Site "Jermuk"]
[Date "2017.10.13"]
[Round "9"]
[White "Kacharava, Nikolozi"]
[Black "Pogosyan, Stefan"]
[Result "1-0"]
[ECO "C55"]
[WhiteElo "2206"]
[BlackElo "2368"]
[Annotator "NA"]
[PlyCount "61"]
[EventDate "2017.??.??"]
[EventType "tourn"]
[EventCountry "ARM"]
[SourceTitle "playchess.com"]
[Source "ChessBase"]
[SourceQuality "1"]
[TimeControl "5400+30"]

1. e4 {[%emt 0:00:00]} e5 {[%emt 0:00:12]} 2. Nf3 {[%emt 0:00:00]} Nc6 {[%emt 0:00:08]} 3. Bc4 {[%emt 0:00:06]} Nf6 {[%emt 0:00:07]} 4. d3 {[%emt 0:00:14]} Be7 {[%emt 0:00:25]} 5. O-O {[%emt 0:00:19]} O-O {[%emt 0:00:13]} 6. Re1 {[%emt 0:00:09]} d6 {[%emt 0:00:08]} 7. a4 {[%emt 0:00:10]} Kh8 {[%emt 0:00:32]} 8. h3 {[%emt 0:00:30] C55: Zweispringerspiel} Ng8 {[%emt 0:00:54]} 9. Nc3 {[%emt 0:00:21]} f5 {[%emt 0:01:43]} 10. Nd5 {[%emt 0:00:36]} fxe4 {[%emt 0:01:01]} 11. dxe4 {[%emt 0:04:47]} Nf6 {[%emt 0:00:36] LiveBook: 5 Games} 12. Ng5 {[%emt 0:15:22]} ({Better is} 12. a5 $14) 12... Nxd5 {[%emt 0:26:11]} 13. Nxh7 $1 {[%emt 0:00:22]} Nb6 $2 {[%emt 0:00:17]} (13... Rf4 $1 $11 14. Qxd5 Nb4) 14. Nxf8 {[%emt 0:06:13]} Nxc4 {[%emt 0:00:11]} 15. Ng6+ {[%emt 0:00:25]} Kh7 {[%emt 0:00:18] [#]} 16. Qh5+ $146 {[%emt 0:00:17]} Kg8 {[%emt 0:00:06]} 17. f4 {[%emt 0:02:55]} exf4 {[%emt 0:13:38]} 18. Qd5+ {[%emt 0:02:04]} Kh7 {[%emt 0:00:14]} 19. Nxe7 {[%emt 0:05:44]} Qxe7 {[%emt 0:00:07]} 20. Qxc4 {[%emt 0:00:08]} f3 {[%emt 0:00:07]} 21. Qf1 {[%emt 0:23:20]} (21. gxf3 Qh4 $17) 21... fxg2 {[%emt 0:17:48]} 22. Qxg2 {[%emt 0:02:17]} Qh4 {[%emt 0:04:37]} 23. Re3 {[%emt 0:08:47]} Nd4 {[%emt 0:01:00]} 24. Kh2 {[%emt 0:01:56]} Bd7 {[%emt 0:06:13]} 25. Rg3 {[%emt 0:01:31]} Qf6 {[%emt 0:02:09]} 26. Bg5 {[%emt 0:08:11]} Qe5 {[%emt 0:00:25]} 27. Rf1 {[%emt 0:01:22]} Ne6 {[%emt 0:05:57]} 28. Bd2 {[%emt 0:02:06]} Qh5 {[%emt 0:07:22]} 29. Rf5 {[%emt 0:04:12]} Qe8 {[%emt 0:00:37]} 30. Bc3 {[%emt 0:00:53]} Qe7 {[%emt 0:04:09]} 31. Bf6 {[%emt 0:00:43]} 1-0